bitfinex/quotes_BTCUSD_20240810
["timestamp","ask_amount","ask_price","bid_price","bid_amount"]
[1723306791214,0.03435592,60686.0,60685.0,0.0155]
[1723306791421,0.03535592,60686.0,60685.0,0.0215]
[1723306791875,0.03535592,60686.0,60685.0,0.0415]
[1723306793164,0.03435592,60686.0,60685.0,0.0355]
[1723306793330,0.03535592,60686.0,60685.0,0.0355]
[1723306793694,0.03535592,60686.0,60685.0,0.0435]
[1723306794390,0.001,60686.0,60685.0,0.0435]
[1723306795705,0.001,60686.0,60685.0,0.0444141]
[1723306799972,0.083391,60686.0,60685.0,0.0444141]
[1723306801161,0.1211843,60686.0,60685.0,0.0444141]
[1723306802246,0.5111483,60686.0,60685.0,0.0159141]
[1723306802454,0.3463663,60686.0,60685.0,0.0259141]
[1723306802581,0.1815843,60686.0,60685.0,0.0259141]
[1723306802975,0.1211843,60686.0,60685.0,0.0259141]
[1723306803812,0.083391,60686.0,60685.0,0.0259141]
[1723306804083,0.12124501,60686.0,60685.0,0.0259141]
[1723306804438,0.12124225,60686.0,60685.0,0.0259141]
[1723306804655,0.03885125,60686.0,60685.0,0.0444141]
[1723306805133,0.03885125,60686.0,60685.0,0.1105141]
[1723306805567,0.001,60686.0,60685.0,0.1105141]
[1723306805766,0.03881593,60686.0,60685.0,0.1105141]
[1723306806718,0.03881593,60686.0,60685.0,0.65184368]
[1723306806919,0.03881593,60686.0,60685.0,0.73504368]
[1723306807206,0.001,60686.0,60685.0,0.73504368]
[1723306807768,0.001,60686.0,60685.0,0.89982868]
[1723306808327,0.001831,60686.0,60685.0,1.2404286]
[1723306808530,0.001131,60686.0,60685.0,1.3284286]
[1723306808770,0.001131,60686.0,60685.0,1.87876828]
[1723306808970,0.001131,60686.0,60685.0,1.2425436]
[1723306809487,0.001131,60686.0,60685.0,1.2345436]
[1723306809902,0.001131,60686.0,60685.0,1.2485436]
[1723306810567,0.000831,60686.0,60685.0,1.2415436]
[1723306810759,0.001831,60686.0,60685.0,1.2485436]
[1723306810874,0.001831,60686.0,60685.0,1.11917602]
[1723306811090,0.001831,60686.0,60685.0,1.24912001]
[1723306811292,0.000831,60686.0,60685.0,1.24212001]
[1723306811541,0.000831,60686.0,60685.0,0.97830509]
[1723306811744,0.000831,60686.0,60685.0,0.25575009]
[1723306811945,0.000831,60686.0,60685.0,0.1258061]
[1723306812168,0.000831,60686.0,60685.0,0.1398061]
[1723306812542,0.000831,60686.0,60685.0,0.0434141]
[1723306812783,0.03859222,60686.0,60685.0,0.1258061]
[1723306813030,0.03859222,60686.0,60685.0,0.1398061]
[1723306813512,0.03859283,60686.0,60685.0,0.1398061]
[1723306813711,0.03859283,60686.0,60685.0,0.1258061]
[1723306813986,0.03859283,60686.0,60685.0,0.1118061]
[1723306814123,0.03859283,60686.0,60685.0,0.1058061]
[1723306814124,0.03959283,60686.0,60685.0,0.1058061]
[1723306814538,0.03968265,60686.0,60685.0,0.0434141]
[1723306814757,0.03868265,60686.0,60685.0,0.0294141]
[1723306814976,0.03868265,60686.0,60685.0,0.2765911]
[1723306815191,0.001831,60686.0,60685.0,0.2825911]
[1723306815593,0.001831,60686.0,60685.0,0.2625911]
[1723306815958,0.03957659,60686.0,60685.0,0.2965911]
[1723306816188,0.03957659,60686.0,60685.0,0.2765911]
[1723306816389,0.03957659,60686.0,60685.0,0.2625911]
[1723306816718,0.001831,60686.0,60685.0,0.2745911]
[1723306817137,0.001831,60686.0,60685.0,0.2945911]
[1723306817337,0.000831,60686.0,60685.0,0.2885911]
[1723306817536,0.000831,60686.0,60685.0,0.2565911]
[1723306817721,0.001831,60686.0,60685.0,0.2635911]
[1723306817926,0.001831,60686.0,60685.0,0.2745911]
[1723306818354,0.000831,60686.0,60685.0,0.2675911]
[1723306818787,0.001831,60686.0,60685.0,0.2785911]
[1723306819238,0.001831,60686.0,60685.0,0.4633761]
[1723306819439,0.001831,60686.0,60685.0,0.70957375]
[1723306819753,0.001831,60686.0,60685.0,0.69857375]
[1723306820179,0.001831,60686.0,60685.0,0.71057375]
[1723306820418,0.001831,60686.0,60685.0,0.71857375]
[1723306820621,0.001831,60686.0,60685.0,0.69857375]
[1723306821105,0.001831,60686.0,60685.0,0.71257375]
[1723306821322,0.000831,60686.0,60685.0,1.04817367]
[1723306821522,0.000831,60686.0,60685.0,1.14817367]
[1723306821818,0.001831,60686.0,60685.0,1.2942402]
[1723306822036,0.001831,60686.0,60685.0,1.3082402]
[1723306822400,0.000831,60686.0,60685.0,1.30497215]
[1723306822562,0.000831,60686.0,60685.0,1.32497215]
[1723306822762,0.001831,60686.0,60685.0,1.33897215]
[1723306823004,0.001831,60686.0,60685.0,1.3292402]
[1723306824394,0.000831,60686.0,60685.0,1.3012402]
[1723306824614,0.000831,60686.0,60685.0,1.2812402]
[1723306824817,0.000831,60686.0,60685.0,1.3092402]
[1723306825009,0.000831,60686.0,60685.0,1.3292402]
[1723306825217,0.000831,60686.0,60685.0,1.02027602]
[1723306825413,0.000831,60686.0,60685.0,1.13653936]
[1723306825614,0.000831,60686.0,60685.0,0.74945436]
[1723306825822,0.000831,60686.0,60685.0,0.76313896]
[1723306827788,0.000831,60686.0,60685.0,0.1173061]
[1723306828004,0.000831,60686.0,60685.0,0.0574141]
[1723306828005,0.32985046,60686.0,60685.0,0.0574141]
[1723306828225,0.44637488,60686.0,60685.0,0.0434141]
[1723306828655,0.44637488,60686.0,60685.0,0.0574141]
[1723306828853,0.44637488,60686.0,60685.0,0.0434141]
[1723306829233,0.44637488,60686.0,60685.0,0.0384141]
[1723306829613,0.44637488,60686.0,60685.0,0.0404141]
[1723306830683,0.40865046,60686.0,60685.0,0.0404141]
[1723306830875,0.4464979,60686.0,60685.0,0.0404141]
[1723306831086,0.4464979,60686.0,60685.0,0.0314141]
[1723306831491,0.2817159,60686.0,60685.0,0.0364141]
[1723306831669,0.11747844,60686.0,60685.0,0.0344141]
[1723306831828,0.11747844,60686.0,60685.0,0.0364141]
[1723306831829,0.12077669,60686.0,60685.0,0.0364141]
[1723306832041,0.04197669,60686.0,60685.0,0.0364141]
[1723306832249,0.04197669,60686.0,60685.0,0.0454141]
[1723306832493,0.04197669,60686.0,60685.0,0.0384141]
[1723306832697,0.04197669,60686.0,60685.0,0.0294141]
[1723306832899,0.12436769,60686.0,60685.0,0.0314141]
[1723306833106,0.12436769,60686.0,60685.0,0.0364141]
[1723306833326,0.28914969,60686.0,60685.0,0.0364141]
[1723306833518,0.28914969,60686.0,60685.0,0.0344141]
[1723306834368,0.28914969,60686.0,60685.0,0.0294141]
[1723306834369,0.12436769,60686.0,60685.0,0.0294141]
[1723306834860,0.12436769,60686.0,60685.0,0.0099141]
[1723306834861,0.36754969,60686.0,60685.0,0.0099141]
[1723306835063,0.53233169,60686.0,60685.0,0.0099141]
[1723306835233,0.53233169,60686.0,60685.0,0.0079141]
[1723306835434,0.36754969,60686.0,60685.0,0.0079141]
[1723306835635,0.36754969,60686.0,60685.0,0.0119141]
[1723306835977,0.36754969,60686.0,60685.0,0.0079141]
[1723306836200,0.36754969,60686.0,60685.0,0.0009141]
[1723306836408,0.36754969,60686.0,60685.0,0.0099141]
[1723306836611,0.16492025,60686.0,60685.0,0.0169141]
[1723306836811,0.20278699,60686.0,60685.0,0.0169141]
[1723306837942,0.20281009,60686.0,60685.0,0.0169141]
[1723306838097,0.20281009,60686.0,60685.0,0.0079141]
[1723306838625,0.20281009,60686.0,60685.0,0.0169141]
[1723306839323,0.36767534,60686.0,60685.0,0.0169141]
[1723306839823,0.3676742,60686.0,60685.0,0.0169141]
[1723306840170,0.36768103,60686.0,60685.0,0.0169141]
[1723306840598,0.53246303,60686.0,60685.0,0.0169141]
[1723306841657,0.12050803,60686.0,60685.0,0.0354141]
[1723306841862,0.12050803,60686.0,60685.0,0.0364141]
[1723306842042,0.12050803,60686.0,60685.0,0.0094141]
[1723306842351,0.04210803,60686.0,60685.0,0.0094141]
[1723306842575,0.04210803,60686.0,60685.0,0.0164141]
[1723306842931,0.04210803,60686.0,60685.0,0.0254141]
[1723306843109,0.04210803,60686.0,60685.0,0.0184141]
[1723306843291,0.04210803,60686.0,60685.0,0.0094141]
[1723306843507,0.04210803,60686.0,60685.0,0.0364141]
[1723306843755,0.04210803,60686.0,60685.0,0.0254141]
[1723306845022,0.04210803,60686.0,60685.0,0.0454141]
[1723306845227,0.04210803,60686.0,60685.0,0.0254141]
[1723306845399,0.00412925,60686.0,60685.0,0.1208061]
[1723306845800,0.00412925,60686.0,60685.0,0.1188061]
[1723306846182,0.00412925,60686.0,60685.0,0.2925911]
[1723306846439,0.000831,60686.0,60685.0,0.2925911]
[1723306846641,0.000831,60686.0,60685.0,0.2765911]
[1723306846847,0.000831,60686.0,60685.0,0.1198061]
[1723306847052,0.000831,60686.0,60685.0,0.2945911]
[1723306847469,0.000831,60686.0,60685.0,0.2865911]
[1723306847875,0.000831,60686.0,60685.0,0.1218061]
[1723306848857,0.000831,60686.0,60685.0,0.2865911]
[1723306849480,0.000831,60686.0,60685.0,0.2845911]
[1723306849976,0.000831,60686.0,60685.0,0.2955911]
[1723306850175,0.000831,60686.0,60685.0,0.2875911]
[1723306850544,0.000831,60686.0,60685.0,0.0494141]
[1723306850751,0.03847881,60686.0,60685.0,0.0494141]
[1723306850945,0.03847881,60686.0,60685.0,0.1318061]
[1723306851141,0.00411676,60686.0,60685.0,0.1318061]
[1723306851345,0.04189772,60686.0,60685.0,0.1318061]
[1723306851980,0.04191245,60686.0,60685.0,0.1318061]
[1723306852976,0.0419057,60686.0,60685.0,0.1318061]
[1723306853948,0.04190339,60686.0,60685.0,0.1318061]
[1723306854591,0.04190339,60686.0,60685.0,0.2965911]
[1723306855016,0.04184349,60686.0,60685.0,0.2965911]
[1723306855180,0.03855773,60686.0,60685.0,0.1318061]
[1723306855387,0.12412143,60686.0,60685.0,0.0309141]
[1723306855566,0.26122143,60686.0,60685.0,0.0309141]
[1723306855759,0.17883043,60686.0,60685.0,0.0309141]
[1723306855960,0.17883043,60686.0,60685.0,0.0494141]
[1723306855961,0.04173043,60686.0,60685.0,0.0494141]
[1723306856219,0.04173043,60686.0,60685.0,0.2965911]
[1723306856878,0.04173043,60686.0,60685.0,0.1318061]
[1723306857410,0.04173043,60686.0,60685.0,0.26185465]
[1723306857786,0.04173043,60686.0,60685.0,0.1318061]
[1723306858206,0.04173043,60686.0,60685.0,0.42667099]
[1723306858652,0.03851403,60686.0,60685.0,0.426671]
[1723306858857,0.04168673,60686.0,60685.0,0.426671]
[1723306859059,0.04168673,60686.0,60685.0,0.42667099]
[1723306859456,0.04168673,60686.0,60685.0,0.2965911]
[1723306859770,0.04168673,60686.0,60685.0,0.4268454]
[1723306860118,0.0040037,60686.0,60685.0,0.2965911]
[1723306860324,0.000831,60686.0,60685.0,0.42671717]
[1723306860683,0.04171174,60686.0,60685.0,0.42671717]
[1723306861256,0.04168769,60686.0,60685.0,0.42669409]
[1723306861683,0.04168769,60686.0,60685.0,0.42669434]
[1723306861881,0.04168769,60686.0,60685.0,0.42669664]
[1723306863869,0.11848769,60686.0,60685.0,0.17951964]
[1723306864068,0.11848769,60686.0,60685.0,0.0494141]
[1723306864069,0.17878769,60686.0,60685.0,0.0494141]
[1723306864218,0.17878769,60686.0,60685.0,0.1318061]
[1723306864753,0.06431504,60686.0,60685.0,0.1318061]
[1723306864968,0.04176661,60686.0,60685.0,0.1318061]
[1723306865888,0.59082161,60686.0,60685.0,0.0309141]
[1723306866282,0.42603961,60686.0,60685.0,0.0309141]
[1723306867286,0.59082161,60686.0,60685.0,0.0309141]
[1723306867923,0.59082161,60686.0,60685.0,0.0209141]
[1723306867924,0.75463653,60686.0,60685.0,0.0209141]
[1723306868146,0.91677275,60686.0,60685.0,0.0209141]
[1723306868458,1.18406861,60686.0,60685.0,0.0209141]
[1723306868588,1.01587348,60686.0,60685.0,0.0209141]
[1723306868792,1.18406456,60686.0,60685.0,0.0209141]
[1723306869449,1.18392375,60686.0,60685.0,0.0099141]
[1723306869626,1.18392375,60686.0,60685.0,0.0009141]
[1723306869826,1.18392375,60686.0,60685.0,0.0029141]
[1723306871890,1.18336143,60686.0,60685.0,0.0029141]
[1723306872061,1.01707943,60686.0,60685.0,0.0029141]
[1723306872241,0.94241861,60686.0,60685.0,0.0029141]
[1723306872442,1.01613166,60686.0,60685.0,0.0029141]
[1723306872665,0.96088212,60686.0,60685.0,0.0029141]
[1723306872865,0.75561721,60686.0,60685.0,0.0029141]
[1723306873027,0.74949967,60686.0,60685.0,0.0029141]
[1723306873229,0.70035415,60686.0,60685.0,0.0029141]
[1723306873667,0.04159263,60686.0,60685.0,0.0114141]
[1723306873865,0.04159263,60686.0,60685.0,0.0314141]
[1723306874112,0.04159263,60686.0,60685.0,0.4433761]
[1723306874310,0.00401504,60686.0,60685.0,0.5008761]
[1723306874514,0.000831,60686.0,60685.0,0.5008761]
[1723306874857,0.000831,60686.0,60685.0,0.5208761]
[1723306875031,0.000831,60686.0,60685.0,0.5008761]
[1723306875454,0.000831,60686.0,60685.0,0.4988761]
[1723306875673,0.000831,60686.0,60685.0,0.5188761]
[1723306875848,0.000831,60686.0,60685.0,0.5328761]
[1723306876357,0.000831,60686.0,60685.0,0.5188761]
[1723306876559,0.000831,60686.0,60685.0,0.5448761]
[1723306879982,0.000831,60686.0,60685.0,0.5248761]
[1723306881121,0.000831,60686.0,60685.0,0.3800911]
[1723306881516,0.000831,60686.0,60685.0,0.5448761]
[1723306883712,0.000831,60686.0,60685.0,0.85347602]
[1723306883885,0.000831,60686.0,60685.0,1.0452419]
[1723306884132,0.000831,60686.0,60685.0,1.0652419]
[1723306885335,0.000831,60686.0,60685.0,1.0532419]
[1723306885756,0.000831,60686.0,60685.0,1.0662419]
[1723306886132,0.000831,60686.0,60685.0,1.0392419]
[1723306886751,0.000831,60686.0,60685.0,1.0532419]
[1723306888138,0.000831,60686.0,60685.0,1.0672419]
[1723306889386,0.000831,60686.0,60685.0,1.06770935]
[1723306889727,0.000831,60686.0,60685.0,0.93597602]
[1723306889930,0.000831,60686.0,60685.0,1.06770817]
[1723306890399,0.000831,60686.0,60685.0,1.06770672]
[1723306892573,0.000831,60686.0,60685.0,1.03370672]
[1723306892779,0.000831,60686.0,60685.0,1.05370672]
[1723306892979,0.000831,60686.0,60685.0,1.06775609]
[1723306893537,0.000831,60686.0,60685.0,1.03975609]
[1723306893892,0.000831,60686.0,60685.0,1.06775609]
[1723306896056,0.000831,60686.0,60685.0,1.21254109]
[1723306896265,0.000831,60686.0,60685.0,1.26454109]
[1723306896485,0.000831,60686.0,60685.0,1.26435734]
[1723306896684,0.000831,60686.0,60685.0,1.22235734]
[1723306896885,0.000831,60686.0,60685.0,1.20835734]
[1723306897140,0.000831,60686.0,60685.0,1.25035734]
[1723306897391,0.000831,60686.0,60685.0,1.26435734]
[1723306897612,0.000831,60686.0,60685.0,1.25035734]
[1723306897788,0.000831,60686.0,60685.0,1.23635734]
[1723306898020,0.000831,60686.0,60685.0,1.45042647]
[1723306898261,0.000831,60688.0,60687.0,0.944105]
[1723306898486,0.000831,60688.0,60687.0,1.75510789]
[1723306899176,0.000831,60688.0,60687.0,1.96062602]
[1723306899389,0.000831,60688.0,60687.0,1.96111306]
[1723306899569,0.000831,60688.0,60687.0,1.79729511]
[1723306899980,0.000831,60688.0,60687.0,1.79011301]
[1723306900133,0.000831,60688.0,60687.0,1.79729447]
[1723306900342,0.000831,60689.0,60688.0,0.999793]
[1723306900706,0.000831,60689.0,60688.0,1.92027497]
[1723306900860,0.000831,60689.0,60688.0,1.92026804]
[1723306902648,0.000831,60697.0,60696.0,0.801897]
[1723306902825,0.000831,60697.0,60696.0,1.72474336]
[1723306903044,0.000831,60697.0,60696.0,1.75776336]
[1723306903183,0.0643,60722.0,60699.0,1.141728]
[1723306903383,0.0643,60722.0,60699.0,1.56041936]
[1723306903599,0.0773,60723.0,60699.0,1.79728363]
[1723306904570,0.0773,60723.0,60699.0,1.75528363]
[1723306904892,0.0773,60723.0,60699.0,1.76928363]
[1723306905050,0.0773,60723.0,60699.0,1.81128363]
[1723306905472,0.0773,60723.0,60699.0,1.78328363]
[1723306905667,0.0773,60723.0,60699.0,1.82528363]
[1723306905890,0.0773,60723.0,60699.0,1.78328363]
[1723306906093,0.0773,60723.0,60699.0,1.82528363]
[1723306906958,0.0773,60723.0,60699.0,1.78328363]
[1723306907162,0.0773,60723.0,60699.0,1.54700349]
[1723306907362,0.0773,60723.0,60699.0,1.82579018]
[1723306908216,0.14614646,60724.0,60699.0,1.78379018]
[1723306908217,0.1469,60713.0,60699.0,1.78379018]
[1723306908419,0.1469,60713.0,60699.0,1.40425649]
[1723306908636,0.1469,60713.0,60699.0,1.42425649]
[1723306908841,0.1469,60713.0,60699.0,1.39625649]
[1723306909048,0.1469,60713.0,60699.0,1.37325649]
[1723306909337,0.1469,60713.0,60699.0,1.34525649]
[1723306909549,0.1469,60713.0,60699.0,1.38725649]
[1723306910049,0.1469,60713.0,60699.0,1.37725649]
[1723306910225,0.08184646,60717.0,60699.0,1.37725649]
[1723306910226,0.0666,60705.0,60699.0,1.18013649]
[1723306910911,0.0666,60705.0,60699.0,1.17995843]
[1723306911318,0.0666,60705.0,60699.0,1.04767592]
[1723306911690,0.0666,60705.0,60699.0,1.0152105]
[1723306911885,0.08531,60702.0,60699.0,1.0152105]
[1723306912088,0.08531,60702.0,60699.0,1.0292105]
[1723306912262,0.08531,60702.0,60699.0,1.0152105]
[1723306912649,0.08531,60702.0,60699.0,1.0292105]
[1723306913068,0.08531,60702.0,60699.0,1.0152105]
[1723306913271,0.08531,60702.0,60699.0,0.9152105]
[1723306913473,0.08531,60702.0,60699.0,0.78292892]
[1723306913798,0.08531,60702.0,60699.0,0.76292892]
[1723306914776,0.08531,60702.0,60699.0,0.8811078]
[1723306914981,0.08531,60702.0,60699.0,0.8951078]
[1723306915182,0.08531,60702.0,60699.0,0.9291078]
[1723306915496,0.08531,60702.0,60699.0,0.8811078]
[1723306915698,0.08531,60702.0,60699.0,0.9011078]
[1723306915898,0.08531,60702.0,60699.0,0.9291078]
[1723306916307,0.08531,60702.0,60699.0,0.9151078]
[1723306916483,0.00831,60702.0,60699.0,0.8811078]
[1723306916687,0.00831,60702.0,60699.0,0.8951078]
[1723306917039,0.00831,60702.0,60699.0,0.9091078]
[1723306918625,0.00831,60702.0,60699.0,0.8951078]
[1723306919329,0.00831,60702.0,60699.0,0.9091078]
[1723306919548,0.00831,60702.0,60699.0,0.8951078]
[1723306919706,0.00831,60702.0,60699.0,0.8811078]
[1723306919872,0.00831,60702.0,60699.0,0.8951078]
[1723306920074,0.07783,60700.0,60699.0,0.9291078]
[1723306920283,0.14253,60700.0,60699.0,0.5996138]
[1723306920508,0.14253,60700.0,60699.0,0.45343492]
[1723306920712,0.14253,60700.0,60699.0,0.75004628]
[1723306920954,0.14681877,60700.0,60699.0,0.73604628]
[1723306921161,0.14681877,60700.0,60699.0,0.88079328]
[1723306921357,0.14681877,60700.0,60699.0,0.90079328]
[1723306921561,0.14253,60700.0,60699.0,0.88079328]
[1723306921737,0.14253,60700.0,60699.0,0.88087153]
[1723306922152,0.00083,60700.0,60699.0,0.88087153]
[1723306922357,0.00083,60700.0,60699.0,0.89487153]
[1723306922798,0.00083,60700.0,60699.0,0.90887153]
[1723306922986,0.00083,60700.0,60699.0,0.89487153]
[1723306923184,0.00083,60700.0,60699.0,0.88087153]
[1723306923390,0.00083,60700.0,60699.0,0.89487153]
[1723306923593,0.00083,60700.0,60699.0,1.24931853]
[1723306923791,0.00083,60700.0,60699.0,1.32351853]
[1723306923947,0.00083,60700.0,60699.0,1.31851853]
[1723306924371,0.00083,60700.0,60699.0,1.44032307]
[1723306924572,0.00083,60700.0,60699.0,1.25238046]
[1723306924772,0.00083,60700.0,60699.0,1.42670833]
[1723306924972,0.00083,60700.0,60699.0,1.55570446]
[1723306925248,0.00831,60702.0,60701.0,0.10087]
[1723306925451,0.00831,60702.0,60701.0,1.06421203]
[1723306925652,0.00831,60702.0,60701.0,1.55843503]
[1723306925779,0.00831,60702.0,60701.0,1.93379747]
[1723306925980,0.00831,60702.0,60701.0,2.12312546]
[1723306926224,0.00831,60702.0,60701.0,2.0913645]
[1723306926409,0.00831,60702.0,60701.0,2.14771245]
[1723306926584,0.00831,60702.0,60701.0,1.98297145]
[1723306926999,0.00831,60702.0,60701.0,1.99697145]
[1723306927206,0.00831,60702.0,60701.0,2.01097145]
[1723306928044,0.00831,60702.0,60701.0,1.9126235]
[1723306928244,0.00831,60702.0,60701.0,2.01092455]
[1723306930587,0.00831,60702.0,60701.0,1.91258506]
[1723306930787,0.00831,60702.0,60701.0,2.11398349]
[1723306930967,0.00831,60702.0,60701.0,2.13856837]
[1723306931897,0.00831,60702.0,60701.0,1.67120492]
[1723306932097,0.00831,60702.0,60701.0,2.14948626]
[1723306932504,0.00831,60702.0,60701.0,1.78598002]
[1723306932705,0.00831,60702.0,60701.0,2.14952047]
[1723306933111,0.00831,60702.0,60701.0,2.14992003]
[1723306933310,0.6552482,60737.0,60701.0,2.14992003]
[1723306933311,0.0778,60729.0,60725.0,0.110838]
[1723306933534,0.0778,60729.0,60725.0,0.76009288]
[1723306933535,0.0001,60729.0,60725.0,0.76009288]
[1723306933742,0.00419588,60726.0,60725.0,0.87209288]
[1723306933897,0.00419588,60726.0,60725.0,1.03676888]
[1723306933898,0.0001,60726.0,60725.0,1.03676888]
[1723306934637,0.0001,60726.0,60725.0,1.04276888]
[1723306935065,0.0001,60726.0,60725.0,1.05676888]
[1723306935360,0.0001,60726.0,60725.0,1.05271002]
[1723306935977,0.0001,60726.0,60725.0,0.92162206]
[1723306936179,0.0001,60726.0,60725.0,1.05425098]
[1723306936480,0.0001,60726.0,60725.0,1.04825098]
[1723306936780,0.0001,60726.0,60725.0,0.88357498]
[1723306936916,0.0001,60726.0,60725.0,0.69995784]
[1723306937121,0.0001,60726.0,60725.0,0.67995784]
[1723306937122,0.144,60726.0,60725.0,0.67995784]
[1723306937322,0.144,60726.0,60725.0,0.68595784]
[1723306937523,0.14831185,60726.0,60725.0,0.85063384]
[1723306937805,0.14831185,60726.0,60725.0,0.83663384]
[1723306937925,0.144,60726.0,60725.0,0.68595784]
[1723306938258,0.14831185,60726.0,60725.0,0.68595784]
[1723306938458,0.14831185,60726.0,60725.0,0.48728184]
[1723306938672,0.14831185,60726.0,60725.0,0.52128184]
[1723306938842,0.14831185,60726.0,60725.0,0.43894384]
[1723306939046,0.14831185,60726.0,60725.0,0.50728184]
[1723306939253,0.14831185,60726.0,60725.0,0.67195784]
[1723306939459,0.14831185,60726.0,60725.0,0.68595784]
[1723306939969,0.144,60726.0,60725.0,0.68552368]
[1723306940506,0.144,60726.0,60725.0,0.66552368]
[1723306940707,0.144,60726.0,60725.0,0.53484768]
[1723306940922,0.144,60726.0,60725.0,0.32031492]
[1723306941519,0.144,60726.0,60725.0,0.22031492]
[1723306941939,0.14831922,60726.0,60725.0,0.22031492]
[1723306942116,0.14831922,60726.0,60725.0,0.20031492]
[1723306943031,0.14831922,60726.0,60725.0,0.18631492]
[1723306943578,0.14831922,60726.0,60725.0,0.28265292]
[1723306943961,0.14831922,60726.0,60725.0,0.44732892]
[1723306944162,0.14831922,60726.0,60725.0,0.43332892]
[1723306945004,0.14831922,60726.0,60725.0,0.28265292]
[1723306945382,0.14831922,60726.0,60725.0,0.76268292]
[1723306945583,0.14831922,60726.0,60725.0,0.74868292]
[1723306945584,0.144,60726.0,60725.0,0.74868292]
[1723306945803,0.144,60726.0,60725.0,0.76268292]
[1723306946007,0.14914446,60726.0,60725.0,0.76268292]
[1723306946218,0.14914446,60726.0,60725.0,0.92735892]
[1723306946472,0.14914446,60726.0,60725.0,0.68034492]
[1723306946687,0.14914446,60726.0,60725.0,0.69434492]
[1723306947096,0.14914446,60726.0,60725.0,0.71434492]
[1723306947097,0.23148146,60726.0,60725.0,0.71434492]
[1723306947278,0.23148146,60726.0,60725.0,0.69434492]
[1723306947436,0.14914446,60726.0,60725.0,0.69434492]
[1723306947813,0.14914446,60726.0,60725.0,0.78268292]
[1723306948026,0.14914446,60726.0,60725.0,0.89546682]
[1723306948225,0.14914446,60726.0,60725.0,0.69434492]
[1723306948431,0.144831,60726.0,60725.0,0.82744588]
[1723306948652,0.144831,60726.0,60725.0,0.69434492]
[1723306948857,0.14915458,60726.0,60725.0,0.69434492]
[1723306949699,0.14915458,60726.0,60725.0,0.77668292]
[1723306950086,0.14915458,60726.0,60725.0,0.69434492]
[1723306950287,0.14915458,60726.0,60725.0,0.71434492]
[1723306950678,0.14915458,60726.0,60725.0,0.79668292]
[1723306951076,0.14915458,60726.0,60725.0,0.77668292]
[1723306951895,0.14915458,60726.0,60725.0,0.90956746]
[1723306952291,0.144831,60726.0,60725.0,0.90956746]
[1723306952491,0.144831,60726.0,60725.0,0.41553746]
[1723306952861,0.1491462,60726.0,60725.0,0.58021346]
[1723306954090,0.1491462,60726.0,60725.0,0.44672892]
[1723306954297,0.1491462,60726.0,60725.0,0.58002125]
[1723306954738,0.1491462,60726.0,60725.0,0.58002105]
[1723306955579,0.1491462,60726.0,60725.0,0.74469705]
[1723306955580,0.0052462,60726.0,60725.0,0.74469705]
[1723306955805,0.000931,60726.0,60725.0,0.74469705]
[1723306957777,0.000931,60726.0,60725.0,0.74458396]
[1723306958491,0.000931,60726.0,60725.0,0.98875996]
[1723306958893,0.000931,60726.0,60725.0,0.90925996]
[1723306959096,0.000931,60726.0,60725.0,0.74458396]
[1723306959473,0.000931,60726.0,60725.0,0.7442839]
[1723306961408,0.000931,60726.0,60725.0,1.02044601]
[1723306961607,0.000931,60726.0,60725.0,1.14344601]
[1723306961846,0.000931,60726.0,60725.0,1.53310072]
[1723306962046,0.000931,60726.0,60725.0,1.45360072]
[1723306963797,0.000931,60726.0,60725.0,1.43060072]
[1723306964626,0.000931,60726.0,60725.0,1.26592472]
[1723306964838,0.000931,60726.0,60725.0,0.86427001]
[1723306965245,0.000931,60726.0,60725.0,0.89608092]
[1723306965444,0.000931,60726.0,60725.0,0.864022]
[1723306966118,0.000931,60726.0,60725.0,1.50958509]
[1723306966651,0.000931,60726.0,60725.0,1.50958216]
[1723306967095,0.000931,60726.0,60725.0,1.48958216]
[1723306967649,0.000931,60726.0,60725.0,1.50958216]
[1723306967849,0.000931,60726.0,60725.0,1.43008216]
[1723306968472,0.000931,60726.0,60725.0,1.42939365]
[1723306969346,0.000931,60726.0,60725.0,1.40939365]
[1723306970389,0.000931,60726.0,60725.0,1.28774534]
[1723306970797,0.000931,60726.0,60725.0,1.30774534]
[1723306971660,0.000931,60726.0,60725.0,1.25846113]
[1723306971841,0.000931,60726.0,60725.0,1.42939365]
[1723306972017,0.000931,60726.0,60725.0,1.43017156]
[1723306973453,0.150431,60726.0,60725.0,1.02875995]
[1723306974212,0.150431,60726.0,60725.0,0.84408395]
[1723306974359,0.150431,60726.0,60725.0,1.00875995]
[1723306974581,0.150431,60726.0,60725.0,1.02875995]
[1723306975165,0.150431,60726.0,60725.0,0.86408395]
[1723306975961,0.150431,60726.0,60725.0,0.73140492]
[1723306976164,0.150431,60726.0,60725.0,0.86438037]
[1723306976530,0.150431,60726.0,60725.0,0.84438037]
[1723306976672,0.150431,60726.0,60725.0,1.00905637]
[1723306979630,0.150431,60726.0,60725.0,0.84438037]
[1723306980213,0.150431,60726.0,60725.0,1.00905637]
[1723306981293,0.150431,60726.0,60725.0,0.73140492]
[1723306981464,0.150431,60726.0,60725.0,0.86437295]
[1723306981675,0.150431,60726.0,60725.0,0.8643691]
[1723306981868,0.150431,60726.0,60725.0,0.9431691]
[1723306982512,0.150431,60726.0,60725.0,1.1078451]
[1723306982720,0.150431,60726.0,60725.0,0.9440832]
[1723306983307,0.150431,60726.0,60725.0,0.6006072]
[1723306984187,0.15475471,60726.0,60725.0,0.7652832]
[1723306985297,0.15475471,60726.0,60725.0,0.92956034]
[1723306985498,0.000931,60726.0,60725.0,0.92956034]
[1723306985746,0.000931,60726.0,60725.0,0.92955107]
[1723306985953,0.000931,60726.0,60725.0,0.90955107]
[1723306986329,0.000931,60726.0,60725.0,0.92955107]
[1723306986673,0.000931,60726.0,60725.0,0.90955107]
[1723306988503,0.000931,60726.0,60725.0,0.79699502]
[1723306988684,0.000931,60726.0,60725.0,0.92974925]
[1723306991581,0.000931,60726.0,60725.0,0.95912795]
[1723306992376,0.000931,60726.0,60725.0,0.95908236]
[1723306993896,0.000931,60726.0,60725.0,1.84462168]
[1723306994066,0.000931,60726.0,60725.0,1.74586428]
[1723306994690,0.000931,60726.0,60725.0,1.78886428]
[1723306995704,0.000931,60726.0,60725.0,1.61903348]
[1723306995917,0.000931,60726.0,60725.0,1.78994885]
[1723306996128,0.000931,60726.0,60725.0,1.89297855]
[1723306996318,0.000931,60726.0,60725.0,1.78994433]
[1723306996886,0.000931,60726.0,60725.0,1.78994897]
[1723306999155,0.000931,60726.0,60725.0,1.25467102]
[1723306999313,0.000931,60726.0,60725.0,1.49157265]
[1723306999515,0.000931,60726.0,60725.0,1.76667065]
[1723306999751,0.000931,60726.0,60725.0,1.78667065]